[Event "Late-Titled-Tuesday-Blitz-September-05-2023"]
[Site "Chess.com"]
[Date "2023.09.05"]
[Round "7"]
[White "martinbitel"]
[Black "OYAcosta"]
[Result "0-1"]
[WhiteElo "2224"]
[BlackElo "2271"]
[TimeControl "180+1"]
[EndTime "15:16:21 PDT"]
[Termination "OYAcosta won by checkmate"]

1. d4 {[%clk 0:03:00.9]} 1... d5 {[%clk 0:02:59.4]} 2. c4 {[%clk 0:03:01]} 2...
c6 {[%clk 0:02:58.1]} 3. Nc3 {[%clk 0:03:00.3]} 3... Nf6 {[%clk 0:02:57.5]} 4.
cxd5 {[%clk 0:02:59.9]} 4... cxd5 {[%clk 0:02:57.8]} 5. Bf4 {[%clk 0:03:00.3]}
5... Nc6 {[%clk 0:02:58.4]} 6. e3 {[%clk 0:02:59.9]} 6... a6 {[%clk 0:02:58.5]}
7. Bd3 {[%clk 0:02:56.1]} 7... Bg4 {[%clk 0:02:56.6]} 8. Nge2 {[%clk 0:02:56.1]}
8... e6 {[%clk 0:02:56.4]} 9. O-O {[%clk 0:02:56.3]} 9... Bd6 {[%clk 0:02:55.9]}
10. Bxd6 {[%clk 0:02:56.2]} 10... Qxd6 {[%clk 0:02:55.9]} 11. Rc1 {[%clk
0:02:56.8]} 11... O-O {[%clk 0:02:56]} 12. Na4 {[%clk 0:02:57.3]} 12... Nd7
{[%clk 0:02:43.2]} 13. Nc5 {[%clk 0:02:42.8]} 13... Nxc5 {[%clk 0:02:32.8]} 14.
Rxc5 {[%clk 0:02:43.7]} 14... e5 {[%clk 0:02:25.8]} 15. f3 {[%clk 0:02:09.7]}
15... Be6 {[%clk 0:02:19.9]} 16. Qc2 {[%clk 0:02:05.2]} 16... g6 {[%clk
0:02:12.8]} 17. a3 {[%clk 0:01:56.6]} 17... Rfe8 {[%clk 0:02:09.3]} 18. b4
{[%clk 0:01:45.3]} 18... Rad8 {[%clk 0:01:49.3]} 19. b5 {[%clk 0:01:35]} 19...
axb5 {[%clk 0:01:46]} 20. Bxb5 {[%clk 0:01:35.9]} 20... exd4 {[%clk 0:01:43.4]}
21. Bxc6 {[%clk 0:00:37.9]} 21... bxc6 {[%clk 0:01:42.4]} 22. Nxd4 {[%clk
0:00:37.2]} 22... Bd7 {[%clk 0:01:39.6]} 23. Nxc6 {[%clk 0:00:30.3]} 23... Bxc6
{[%clk 0:01:38.7]} 24. Rxc6 {[%clk 0:00:30.7]} 24... Qxa3 {[%clk 0:01:38.9]} 25.
Rc3 {[%clk 0:00:30.5]} 25... Qa7 {[%clk 0:01:35.5]} 26. Qf2 {[%clk 0:00:21.1]}
26... Re6 {[%clk 0:01:29.7]} 27. Rd3 {[%clk 0:00:21.2]} 27... Rde8 {[%clk
0:01:28.6]} 28. Rxd5 {[%clk 0:00:20.2]} 28... Rxe3 {[%clk 0:01:27.8]} 29. h3
{[%clk 0:00:17.2]} 29... Qe7 {[%clk 0:01:26.5]} 30. Rfd1 {[%clk 0:00:16.3]}
30... Re2 {[%clk 0:01:26.7]} 31. Kh2 {[%clk 0:00:16.4]} 31... Rxf2 {[%clk
0:01:26]} 32. Rd6 {[%clk 0:00:15.7]} 32... Qe5+ {[%clk 0:01:25.5]} 33. f4 {[%clk
0:00:14.9]} 33... Qxf4+ {[%clk 0:01:25.5]} 34. Kh1 {[%clk 0:00:15.8]} 34... Qg3
{[%clk 0:01:25.9]} 35. Rd8 {[%clk 0:00:15.5]} 35... Qxg2# {[%clk 0:01:26]} 0-1

[Event "Late-Titled-Tuesday-Blitz-September-05-2023"]
[Site "Chess.com"]
[Date "2023.09.05"]
[Round "7"]
[White "HansOnTwitch"]
[Black "Rutricks"]
[Result "1-0"]
[WhiteElo "3006"]
[BlackElo "2681"]
[TimeControl "180+1"]
[EndTime "15:16:26 PDT"]
[Termination "HansOnTwitch won by resignation"]

1. e4 {[%clk 0:02:58.8]} 1... g6 {[%clk 0:03:00]} 2. d4 {[%clk 0:02:58.1]} 2...
Bg7 {[%clk 0:03:00.7]} 3. Nc3 {[%clk 0:02:55.6]} 3... c6 {[%clk 0:03:01.2]} 4.
h3 {[%clk 0:02:54.9]} 4... d5 {[%clk 0:03:02.1]} 5. e5 {[%clk 0:02:54.9]} 5...
f6 {[%clk 0:03:02.5]} 6. f4 {[%clk 0:02:53.8]} 6... Nh6 {[%clk 0:03:03]} 7. g4
{[%clk 0:02:53.4]} 7... O-O {[%clk 0:03:03.1]} 8. Nf3 {[%clk 0:02:51.6]} 8...
fxe5 {[%clk 0:03:03.2]} 9. dxe5 {[%clk 0:02:52.1]} 9... e6 {[%clk 0:03:01.6]}
10. Be3 {[%clk 0:02:38.3]} 10... b6 {[%clk 0:03:02]} 11. Qd2 {[%clk 0:02:30.3]}
11... c5 {[%clk 0:02:50]} 12. Bg2 {[%clk 0:02:21.2]} 12... Bb7 {[%clk
0:02:24.2]} 13. Ng5 {[%clk 0:02:07.4]} 13... Qe7 {[%clk 0:02:24.5]} 14. Bf2
{[%clk 0:02:00]} 14... Na6 {[%clk 0:02:00.3]} 15. O-O {[%clk 0:01:54.8]} 15...
Nf7 {[%clk 0:01:42.7]} 16. Bh4 {[%clk 0:01:54.6]} 16... Rae8 {[%clk 0:00:52]}
17. Nb5 {[%clk 0:01:40.9]} 17... Nc7 {[%clk 0:00:19]} 18. Nxf7 {[%clk
0:01:38.4]} 18... Qxh4 {[%clk 0:00:10]} 19. Nxc7 {[%clk 0:01:37.2]} 19... Re7
{[%clk 0:00:10.6]} 20. Nxe6 {[%clk 0:01:35.5]} 20... Rfxf7 {[%clk 0:00:08.9]}
21. Ng5 {[%clk 0:01:33.2]} 21... Rf8 {[%clk 0:00:07]} 22. Bxd5+ {[%clk
0:01:33.7]} 22... Bxd5 {[%clk 0:00:06.7]} 23. Qxd5+ {[%clk 0:01:34.6]} 23... Kh8
{[%clk 0:00:07.5]} 24. Kg2 {[%clk 0:01:20.7]} 24... Bxe5 {[%clk 0:00:07.9]} 25.
Nf3 {[%clk 0:01:18.4]} 25... Qf6 {[%clk 0:00:03.1]} 26. fxe5 {[%clk 0:01:16.3]}
26... Qf4 {[%clk 0:00:03.1]} 27. Ng5 {[%clk 0:01:13.8]} 1-0

[Event "Late-Titled-Tuesday-Blitz-September-05-2023"]
[Site "Chess.com"]
[Date "2023.09.05"]
[Round "7"]
[White "Schwindle"]
[Black "KejJaj"]
[Result "0-1"]
[WhiteElo "2400"]
[BlackElo "2223"]
[TimeControl "180+1"]
[EndTime "15:16:43 PDT"]
[Termination "KejJaj won by resignation"]

1. e4 {[%clk 0:03:00.9]} 1... c5 {[%clk 0:02:59.9]} 2. Nf3 {[%clk 0:03:01.1]}
2... d6 {[%clk 0:03:00.7]} 3. d4 {[%clk 0:03:01.3]} 3... cxd4 {[%clk 0:03:01.3]}
4. Nxd4 {[%clk 0:03:02]} 4... Nf6 {[%clk 0:03:01.7]} 5. Nc3 {[%clk 0:03:02.7]}
5... g6 {[%clk 0:03:02.2]} 6. Be3 {[%clk 0:03:02.9]} 6... Bg7 {[%clk 0:03:01.2]}
7. f3 {[%clk 0:03:03.4]} 7... O-O {[%clk 0:03:00.6]} 8. Qd2 {[%clk 0:03:04]}
8... Nc6 {[%clk 0:03:00.8]} 9. Bc4 {[%clk 0:03:04.2]} 9... Nd7 {[%clk
0:02:59.8]} 10. O-O-O {[%clk 0:03:00.2]} 10... Nb6 {[%clk 0:02:59.7]} 11. Bb3
{[%clk 0:02:48.6]} 11... Na5 {[%clk 0:02:59.6]} 12. Nd5 {[%clk 0:02:37.5]} 12...
Nbc4 {[%clk 0:02:54]} 13. Qe1 {[%clk 0:02:34.7]} 13... Nxe3 {[%clk 0:02:50.9]}
14. Qxe3 {[%clk 0:02:30.3]} 14... Nxb3+ {[%clk 0:02:50.4]} 15. axb3 {[%clk
0:02:28.3]} 15... a5 {[%clk 0:02:47.3]} 16. Nc3 {[%clk 0:02:23.7]} 16... Bd7
{[%clk 0:02:45]} 17. h4 {[%clk 0:02:19.2]} 17... a4 {[%clk 0:02:36]} 18. bxa4
{[%clk 0:02:15.4]} 18... Bxa4 {[%clk 0:02:34.9]} 19. h5 {[%clk 0:02:08.5]} 19...
Bd7 {[%clk 0:02:28.9]} 20. h6 {[%clk 0:02:05]} 20... Bh8 {[%clk 0:02:20]} 21. g4
{[%clk 0:02:05.2]} 21... Re8 {[%clk 0:01:53.1]} 22. f4 {[%clk 0:01:48.3]} 22...
Qb6 {[%clk 0:01:51.2]} 23. Nd5 {[%clk 0:01:29.9]} 23... Ra1+ {[%clk 0:01:44.9]}
24. Kd2 {[%clk 0:01:27.7]} 24... Rxd1+ {[%clk 0:01:43.2]} 25. Rxd1 {[%clk
0:01:24.5]} 25... Qxd4+ {[%clk 0:01:42.5]} 26. Qxd4 {[%clk 0:01:24.9]} 26...
Bxd4 {[%clk 0:01:42.5]} 27. c3 {[%clk 0:01:25.1]} 27... Bh8 {[%clk 0:01:36.9]}
28. f5 {[%clk 0:01:25.2]} 28... Bc6 {[%clk 0:01:33.1]} 29. c4 {[%clk 0:01:20.2]}
29... Bxd5 {[%clk 0:01:32.5]} 30. cxd5 {[%clk 0:01:20.7]} 30... e6 {[%clk
0:01:27.7]} 31. dxe6 {[%clk 0:01:15.5]} 31... fxe6 {[%clk 0:01:27.2]} 32. fxg6
{[%clk 0:01:02.5]} 32... hxg6 {[%clk 0:01:26.8]} 33. Rc1 {[%clk 0:01:03.1]}
33... Bxb2 {[%clk 0:01:15.3]} 34. Rc7 {[%clk 0:00:58.7]} 34... b6 {[%clk
0:01:00.2]} 35. Rc6 {[%clk 0:00:56.1]} 35... Be5 {[%clk 0:00:53.5]} 36. Rxb6
{[%clk 0:00:56]} 36... Rd8 {[%clk 0:00:47.3]} 37. Ke3 {[%clk 0:00:54.3]} 37...
Bf6 {[%clk 0:00:46]} 38. Kf4 {[%clk 0:00:52.4]} 38... e5+ {[%clk 0:00:43.4]} 39.
Kg3 {[%clk 0:00:52.6]} 39... Bg5 {[%clk 0:00:43.6]} 0-1

[Event "Late-Titled-Tuesday-Blitz-September-05-2023"]
[Site "Chess.com"]
[Date "2023.09.05"]
[Round "7"]
[White "MariaFominykh"]
[Black "Fengwi"]
[Result "0-1"]
[WhiteElo "2269"]
[BlackElo "2436"]
[TimeControl "180+1"]
[EndTime "15:16:53 PDT"]
[Termination "Fengwi won on time"]

1. d4 {[%clk 0:03:00.9]} 1... d5 {[%clk 0:02:51.8]} 2. c4 {[%clk 0:03:00.6]}
2... e6 {[%clk 0:02:51.3]} 3. Nc3 {[%clk 0:03:00.8]} 3... Be7 {[%clk 0:02:50.9]}
4. Bf4 {[%clk 0:02:54.5]} 4... Nf6 {[%clk 0:02:50.4]} 5. e3 {[%clk 0:02:54.5]}
5... O-O {[%clk 0:02:49.3]} 6. cxd5 {[%clk 0:02:45.7]} 6... Nxd5 {[%clk
0:02:48.4]} 7. Nxd5 {[%clk 0:02:42.7]} 7... exd5 {[%clk 0:02:49.3]} 8. a3 {[%clk
0:02:40.8]} 8... a5 {[%clk 0:02:44.8]} 9. Qc2 {[%clk 0:02:37.1]} 9... c6 {[%clk
0:02:29.7]} 10. Bd3 {[%clk 0:02:36.1]} 10... g6 {[%clk 0:02:26]} 11. Nf3 {[%clk
0:02:26]} 11... Nd7 {[%clk 0:02:24.8]} 12. O-O {[%clk 0:01:55.3]} 12... Nf6
{[%clk 0:02:22.3]} 13. h3 {[%clk 0:01:55.1]} 13... Re8 {[%clk 0:02:21.1]} 14.
Ne5 {[%clk 0:01:46.9]} 14... Bd6 {[%clk 0:02:14.6]} 15. Rab1 {[%clk 0:01:34.6]}
15... a4 {[%clk 0:02:11.5]} 16. Rfe1 {[%clk 0:00:58.5]} 16... Nh5 {[%clk
0:02:10.3]} 17. Bh2 {[%clk 0:00:47.7]} 17... Ng7 {[%clk 0:02:00.2]} 18. f3
{[%clk 0:00:24.3]} 18... Qe7 {[%clk 0:01:52.7]} 19. e4 {[%clk 0:00:20.4]} 19...
dxe4 {[%clk 0:01:47.2]} 20. Bxe4 {[%clk 0:00:16.8]} 20... Qf8 {[%clk 0:01:44.5]}
21. Rbd1 {[%clk 0:00:15.4]} 21... Bf5 {[%clk 0:01:43.1]} 22. d5 {[%clk
0:00:14.1]} 22... Bxe5 {[%clk 0:01:42.1]} 23. Bxf5 {[%clk 0:00:12]} 23... Bxh2+
{[%clk 0:01:41.4]} 24. Kxh2 {[%clk 0:00:12.4]} 24... Nxf5 {[%clk 0:01:41.2]} 25.
dxc6 {[%clk 0:00:11.9]} 25... Rxe1 {[%clk 0:01:39]} 26. Rxe1 {[%clk 0:00:09.6]}
26... Qd6+ {[%clk 0:01:37.6]} 27. Kg1 {[%clk 0:00:10]} 27... Qxc6 {[%clk
0:01:37.2]} 28. Qd2 {[%clk 0:00:05]} 28... Re8 {[%clk 0:01:35.5]} 29. Rxe8+
{[%clk 0:00:03.3]} 29... Qxe8 {[%clk 0:01:36.4]} 30. Qb4 {[%clk 0:00:02.8]}
30... Qe3+ {[%clk 0:01:36.3]} 31. Kh2 {[%clk 0:00:02.8]} 31... Qe5+ {[%clk
0:01:35.7]} 32. Kg1 {[%clk 0:00:03]} 32... b5 {[%clk 0:01:35.4]} 33. Qd2 {[%clk
0:00:01.9]} 33... Qd4+ {[%clk 0:01:35.2]} 34. Qxd4 {[%clk 0:00:02.1]} 34... Nxd4
{[%clk 0:01:36.1]} 35. Kf2 {[%clk 0:00:02.6]} 35... f5 {[%clk 0:01:33.4]} 36.
Ke3 {[%clk 0:00:02.8]} 36... Nc6 {[%clk 0:01:33.4]} 37. g4 {[%clk 0:00:02]}
37... Kf7 {[%clk 0:01:33.3]} 38. Kf4 {[%clk 0:00:01.1]} 38... Kf6 {[%clk
0:01:32.5]} 39. h4 {[%clk 0:00:01.6]} 39... h6 {[%clk 0:01:31.4]} 40. g5+ {[%clk
0:00:01.1]} 40... hxg5+ {[%clk 0:01:31.7]} 41. hxg5+ {[%clk 0:00:02]} 41... Ke6
{[%clk 0:01:32.3]} 42. Ke3 {[%clk 0:00:02]} 42... Kd5 {[%clk 0:01:32.6]} 43. Kd3
{[%clk 0:00:02.2]} 43... Ne5+ {[%clk 0:01:32.5]} 44. Ke3 {[%clk 0:00:02.2]}
44... Nc4+ {[%clk 0:01:32.9]} 0-1

[Event "Late-Titled-Tuesday-Blitz-September-05-2023"]
[Site "Chess.com"]
[Date "2023.09.05"]
[Round "7"]
[White "micke12a"]
[Black "dosto07"]
[Result "0-1"]
[WhiteElo "2337"]
[BlackElo "2509"]
[TimeControl "180+1"]
[EndTime "15:17:00 PDT"]
[Termination "dosto07 won by resignation"]

1. e4 {[%clk 0:03:00]} 1... e5 {[%clk 0:02:59.7]} 2. Nf3 {[%clk 0:03:00.1]} 2...
Nc6 {[%clk 0:02:59.2]} 3. Bb5 {[%clk 0:03:00.8]} 3... a6 {[%clk 0:02:59.3]} 4.
Ba4 {[%clk 0:03:00.5]} 4... Nf6 {[%clk 0:02:59.6]} 5. O-O {[%clk 0:03:00.9]}
5... Be7 {[%clk 0:02:59.9]} 6. Bxc6 {[%clk 0:03:00.9]} 6... dxc6 {[%clk
0:02:59.7]} 7. d3 {[%clk 0:03:01.2]} 7... Nd7 {[%clk 0:03:00]} 8. Nbd2 {[%clk
0:03:01.1]} 8... f6 {[%clk 0:02:58]} 9. Nc4 {[%clk 0:02:59.1]} 9... O-O {[%clk
0:02:52.8]} 10. Nh4 {[%clk 0:02:58.7]} 10... Nc5 {[%clk 0:02:52.1]} 11. Ne3
{[%clk 0:02:24.7]} 11... g6 {[%clk 0:02:48.8]} 12. b3 {[%clk 0:02:21]} 12... Ne6
{[%clk 0:02:48.2]} 13. g3 {[%clk 0:02:11]} 13... a5 {[%clk 0:02:36.4]} 14. a4
{[%clk 0:02:08.9]} 14... Nd4 {[%clk 0:02:33.3]} 15. f4 {[%clk 0:02:04.5]} 15...
Bh3 {[%clk 0:02:32.7]} 16. Rf2 {[%clk 0:01:59.2]} 16... exf4 {[%clk 0:02:32.6]}
17. gxf4 {[%clk 0:01:57.6]} 17... f5 {[%clk 0:02:32.6]} 18. Nf3 {[%clk
0:01:34.2]} 18... Bc5 {[%clk 0:02:31.8]} 19. Bb2 {[%clk 0:01:27.1]} 19... Nxb3
{[%clk 0:02:22.4]} 20. d4 {[%clk 0:01:07.5]} 20... Nxa1 {[%clk 0:02:20]} 21.
dxc5 {[%clk 0:01:01.3]} 21... Qxd1+ {[%clk 0:02:11]} 22. Nxd1 {[%clk 0:01:00]}
22... fxe4 {[%clk 0:02:09.9]} 23. Nd4 {[%clk 0:00:58.5]} 23... Nxc2 {[%clk
0:01:53]} 24. Nxc2 {[%clk 0:00:56.2]} 24... Rad8 {[%clk 0:01:50.2]} 25. Nd4
{[%clk 0:00:54.4]} 25... Rd5 {[%clk 0:01:45.8]} 26. Ne3 {[%clk 0:00:48.3]} 26...
Rxc5 {[%clk 0:01:32.3]} 27. Ba3 {[%clk 0:00:45.1]} 27... Rc3 {[%clk 0:01:32.4]}
28. Ndc2 {[%clk 0:00:16.4]} 28... Rd8 {[%clk 0:01:24.3]} 29. Re2 {[%clk
0:00:16.5]} 29... Rdd3 {[%clk 0:01:12.8]} 30. Bb2 {[%clk 0:00:15]} 30... Rb3
{[%clk 0:01:13]} 31. Be5 {[%clk 0:00:15.3]} 31... b5 {[%clk 0:01:07.2]} 32. Bxc7
{[%clk 0:00:09.5]} 32... bxa4 {[%clk 0:01:05.4]} 33. Bxa5 {[%clk 0:00:09.5]}
33... a3 {[%clk 0:01:05.1]} 34. Kf2 {[%clk 0:00:01.5]} 34... a2 {[%clk
0:01:04.3]} 35. Re1 {[%clk 0:00:02.2]} 35... Rb1 {[%clk 0:01:03.8]} 36. Bd2
{[%clk 0:00:01.9]} 36... Rxd2+ {[%clk 0:01:03.2]} 0-1

[Event "Late-Titled-Tuesday-Blitz-September-05-2023"]
[Site "Chess.com"]
[Date "2023.09.05"]
[Round "7"]
[White "leoduarte"]
[Black "olakenn"]
[Result "1-0"]
[WhiteElo "2378"]
[BlackElo "1866"]
[TimeControl "180+1"]
[EndTime "15:17:06 PDT"]
[Termination "leoduarte won on time"]

1. d4 {[%clk 0:03:00.9]} 1... Nf6 {[%clk 0:02:58.8]} 2. c4 {[%clk 0:02:59.1]}
2... g6 {[%clk 0:02:58.7]} 3. Nc3 {[%clk 0:02:59.3]} 3... d6 {[%clk 0:02:58.9]}
4. e4 {[%clk 0:02:59.2]} 4... Bg7 {[%clk 0:02:58.8]} 5. Be3 {[%clk 0:02:54]}
5... O-O {[%clk 0:02:57.2]} 6. h3 {[%clk 0:02:53.9]} 6... Nc6 {[%clk 0:02:57.1]}
7. d5 {[%clk 0:02:53.6]} 7... Nb8 {[%clk 0:02:54.5]} 8. f4 {[%clk 0:02:53.1]}
8... e5 {[%clk 0:02:50.6]} 9. fxe5 {[%clk 0:02:39.9]} 9... dxe5 {[%clk
0:02:47.3]} 10. Nf3 {[%clk 0:02:40.5]} 10... Re8 {[%clk 0:02:36.7]} 11. Bd3
{[%clk 0:02:17]} 11... c6 {[%clk 0:02:35.2]} 12. O-O {[%clk 0:02:15.3]} 12...
cxd5 {[%clk 0:02:33.7]} 13. cxd5 {[%clk 0:02:16.2]} 13... Nbd7 {[%clk
0:02:28.2]} 14. Rc1 {[%clk 0:02:16.1]} 14... b6 {[%clk 0:02:25.2]} 15. Nb5
{[%clk 0:01:47]} 15... Nc5 {[%clk 0:02:03.6]} 16. Bxc5 {[%clk 0:01:46]} 16...
bxc5 {[%clk 0:02:03.2]} 17. Rxc5 {[%clk 0:01:42.4]} 17... Qb6 {[%clk 0:01:57.4]}
18. b4 {[%clk 0:01:40]} 18... Bf8 {[%clk 0:01:53.1]} 19. d6 {[%clk 0:01:39.3]}
19... a6 {[%clk 0:01:45]} 20. Nc7 {[%clk 0:01:39.1]} 20... Rb8 {[%clk
0:01:10.3]} 21. Nxe8 {[%clk 0:01:38.2]} 21... Nxe8 {[%clk 0:01:09]} 22. Kh1
{[%clk 0:01:31.1]} 22... Nxd6 {[%clk 0:00:56.4]} 23. Nxe5 {[%clk 0:01:24.3]}
23... Qxb4 {[%clk 0:00:47.3]} 24. Rc2 {[%clk 0:01:14.7]} 24... Nxe4 {[%clk
0:00:40.1]} 25. Qf3 {[%clk 0:00:59.6]} 25... Bf5 {[%clk 0:00:30.3]} 26. Nc6
{[%clk 0:00:57.5]} 26... Qd6 {[%clk 0:00:17.3]} 27. Bxe4 {[%clk 0:00:48.5]}
27... Bxe4 {[%clk 0:00:10.7]} 28. Qxe4 {[%clk 0:00:48.3]} 28... Rc8 {[%clk
0:00:04.2]} 29. Ne7+ {[%clk 0:00:47.9]} 29... Bxe7 {[%clk 0:00:02.8]} 30. Rxc8+
{[%clk 0:00:47.3]} 30... Kg7 {[%clk 0:00:01.3]} 31. Rc6 {[%clk 0:00:47.3]} 1-0

[Event "Late-Titled-Tuesday-Blitz-September-05-2023"]
[Site "Chess.com"]
[Date "2023.09.05"]
[Round "7"]
[White "MITerryble"]
[Black "Msb2"]
[Result "0-1"]
[WhiteElo "2915"]
[BlackElo "3088"]
[TimeControl "180+1"]
[EndTime "15:17:17 PDT"]
[Termination "Msb2 won on time"]

1. e4 {[%clk 0:03:00.9]} 1... e6 {[%clk 0:03:00.6]} 2. d4 {[%clk 0:03:01]} 2...
d5 {[%clk 0:03:01.4]} 3. exd5 {[%clk 0:03:01.9]} 3... exd5 {[%clk 0:03:02.3]} 4.
Nf3 {[%clk 0:03:01.6]} 4... Nc6 {[%clk 0:03:03]} 5. Bb5 {[%clk 0:03:01]} 5... a6
{[%clk 0:03:03.2]} 6. Ba4 {[%clk 0:02:54.5]} 6... Bd6 {[%clk 0:03:03]} 7. h3
{[%clk 0:02:46.8]} 7... Ne7 {[%clk 0:03:00.3]} 8. c3 {[%clk 0:02:47]} 8... O-O
{[%clk 0:02:59.5]} 9. O-O {[%clk 0:02:47.3]} 9... Bf5 {[%clk 0:02:59.7]} 10. Re1
{[%clk 0:02:47.7]} 10... f6 {[%clk 0:02:56.8]} 11. Nbd2 {[%clk 0:02:47.5]} 11...
Qd7 {[%clk 0:02:56.3]} 12. Nf1 {[%clk 0:02:47.7]} 12... Rae8 {[%clk 0:02:53.7]}
13. Ne3 {[%clk 0:02:38.3]} 13... Bxh3 {[%clk 0:02:30]} 14. gxh3 {[%clk
0:02:27.5]} 14... Qxh3 {[%clk 0:02:30.9]} 15. Bb3 {[%clk 0:02:00.9]} 15... g5
{[%clk 0:02:08.7]} 16. Nxd5 {[%clk 0:01:49.4]} 16... Qg4+ {[%clk 0:02:07.2]} 17.
Kf1 {[%clk 0:01:48.1]} 17... Qh3+ {[%clk 0:02:07.7]} 18. Kg1 {[%clk 0:01:47.2]}
18... Kh8 {[%clk 0:01:41.1]} 19. Nxe7 {[%clk 0:01:11]} 19... g4 {[%clk
0:01:31.5]} 20. Re3 {[%clk 0:00:31.9]} 20... Rxe7 {[%clk 0:00:43]} 21. Ne5
{[%clk 0:00:27.6]} 21... Qh5 {[%clk 0:00:43.1]} 22. Nxc6 {[%clk 0:00:14.5]}
22... bxc6 {[%clk 0:00:24.5]} 23. Rxe7 {[%clk 0:00:13.2]} 23... Qh3 {[%clk
0:00:25]} 24. Rxh7+ {[%clk 0:00:01.6]} 24... Kxh7 {[%clk 0:00:25.9]} 25. Bc2+
{[%clk 0:00:00.6]} 25... f5 {[%clk 0:00:26.2]} 0-1

[Event "Late-Titled-Tuesday-Blitz-September-05-2023"]
[Site "Chess.com"]
[Date "2023.09.05"]
[Round "7"]
[White "SaqoChess_Twitch"]
[Black "FairChess_on_YouTube"]
[Result "1-0"]
[WhiteElo "2757"]
[BlackElo "3025"]
[TimeControl "180+1"]
[EndTime "15:17:17 PDT"]
[Termination "SaqoChess_Twitch won on time"]

1. d4 {[%clk 0:03:00.9]} 1... Nf6 {[%clk 0:02:59.6]} 2. c4 {[%clk 0:02:59.8]}
2... e6 {[%clk 0:02:59.9]} 3. Nc3 {[%clk 0:02:59.5]} 3... Bb4 {[%clk 0:02:59.8]}
4. e3 {[%clk 0:02:59.4]} 4... O-O {[%clk 0:02:59.6]} 5. a3 {[%clk 0:02:59.4]}
5... Bxc3+ {[%clk 0:02:59.2]} 6. bxc3 {[%clk 0:03:00.3]} 6... c5 {[%clk
0:02:59]} 7. Bd3 {[%clk 0:03:00.3]} 7... Nc6 {[%clk 0:02:59.1]} 8. Ne2 {[%clk
0:02:59.8]} 8... b6 {[%clk 0:02:59.2]} 9. O-O {[%clk 0:02:59.4]} 9... Ba6 {[%clk
0:02:59.4]} 10. e4 {[%clk 0:02:59.5]} 10... Ne8 {[%clk 0:02:56.2]} 11. f4 {[%clk
0:02:58.7]} 11... Na5 {[%clk 0:02:54.4]} 12. f5 {[%clk 0:02:56.4]} 12... exf5
{[%clk 0:02:52.1]} 13. exf5 {[%clk 0:02:56.3]} 13... Bxc4 {[%clk 0:02:43.7]} 14.
f6 {[%clk 0:02:50]} 14... Nxf6 {[%clk 0:02:37.1]} 15. Bg5 {[%clk 0:02:49.5]}
15... Qe8 {[%clk 0:02:25.6]} 16. Rxf6 {[%clk 0:02:17.9]} 16... gxf6 {[%clk
0:02:22.6]} 17. Bh6 {[%clk 0:01:57.9]} 17... Qe6 {[%clk 0:01:45.9]} 18. Nf4
{[%clk 0:01:43.8]} 18... Qe3+ {[%clk 0:01:45.5]} 19. Kh1 {[%clk 0:01:43.7]}
19... Bxd3 {[%clk 0:01:46.1]} 20. Qh5 {[%clk 0:01:03.9]} 20... Rfe8 {[%clk
0:00:53.2]} 21. Qh4 {[%clk 0:01:02.2]} 21... Re6 {[%clk 0:00:31.9]} 22. h3
{[%clk 0:00:39.4]} 22... cxd4 {[%clk 0:00:24.7]} 23. cxd4 {[%clk 0:00:36.8]}
23... Kh8 {[%clk 0:00:11.2]} 24. d5 {[%clk 0:00:36.5]} 24... Rd6 {[%clk
0:00:10.8]} 25. Re1 {[%clk 0:00:36.5]} 25... Qc5 {[%clk 0:00:04.1]} 26. Nxd3
{[%clk 0:00:33.7]} 26... Qc3 {[%clk 0:00:03.8]} 27. Qg3 {[%clk 0:00:32.8]} 27...
Rg8 {[%clk 0:00:03.6]} 28. Re8 {[%clk 0:00:33.3]} 1-0

[Event "Late-Titled-Tuesday-Blitz-September-05-2023"]
[Site "Chess.com"]
[Date "2023.09.05"]
[Round "7"]
[White "Eloist"]
[Black "Tomytoteph"]
[Result "1-0"]
[WhiteElo "2472"]
[BlackElo "2595"]
[TimeControl "180+1"]
[EndTime "15:17:22 PDT"]
[Termination "Eloist won by resignation"]

1. e4 {[%clk 0:02:56]} 1... c5 {[%clk 0:02:59.9]} 2. Nf3 {[%clk 0:02:53.4]} 2...
g6 {[%clk 0:03:00]} 3. c3 {[%clk 0:02:52.6]} 3... Bg7 {[%clk 0:02:59.9]} 4. d4
{[%clk 0:02:52.8]} 4... cxd4 {[%clk 0:03:00.8]} 5. cxd4 {[%clk 0:02:53.3]} 5...
d5 {[%clk 0:03:01]} 6. e5 {[%clk 0:02:53.3]} 6... Nc6 {[%clk 0:03:00.9]} 7. Bb5
{[%clk 0:02:53.1]} 7... Bg4 {[%clk 0:03:01]} 8. O-O {[%clk 0:02:48.8]} 8... e6
{[%clk 0:03:00.1]} 9. Bxc6+ {[%clk 0:02:47.9]} 9... bxc6 {[%clk 0:03:00.2]} 10.
Nbd2 {[%clk 0:02:42.7]} 10... Ne7 {[%clk 0:02:54.1]} 11. h3 {[%clk 0:02:42.1]}
11... Bxf3 {[%clk 0:02:54.1]} 12. Qxf3 {[%clk 0:02:39.8]} 12... O-O {[%clk
0:02:55]} 13. Nb3 {[%clk 0:02:38.4]} 13... Nf5 {[%clk 0:02:52.6]} 14. g4 {[%clk
0:02:36.3]} 14... Ne7 {[%clk 0:02:46.8]} 15. Bg5 {[%clk 0:02:31.6]} 15... h6
{[%clk 0:02:22.8]} 16. Bf6 {[%clk 0:02:27.8]} 16... Bxf6 {[%clk 0:02:23.1]} 17.
Qxf6 {[%clk 0:02:19.7]} 17... Rb8 {[%clk 0:02:15.9]} 18. Rac1 {[%clk 0:02:18.1]}
18... Rb6 {[%clk 0:02:14]} 19. Rc2 {[%clk 0:02:13.8]} 19... Nc8 {[%clk
0:02:11.5]} 20. Qxd8 {[%clk 0:02:10.3]} 20... Rxd8 {[%clk 0:02:12.4]} 21. Rfc1
{[%clk 0:02:09.4]} 21... Ne7 {[%clk 0:02:12.5]} 22. f4 {[%clk 0:01:59.4]} 22...
Rdb8 {[%clk 0:02:11]} 23. Rc5 {[%clk 0:01:54.8]} 23... Rb4 {[%clk 0:02:06.5]}
24. Kf2 {[%clk 0:01:53.1]} 24... Kg7 {[%clk 0:02:03.9]} 25. Ra5 {[%clk
0:01:45.4]} 25... R8b7 {[%clk 0:01:59.3]} 26. Ke3 {[%clk 0:01:41.8]} 26... R4b5
{[%clk 0:01:35]} 27. Rc5 {[%clk 0:01:40.4]} 27... Rb4 {[%clk 0:01:26.6]} 28. Ra6
{[%clk 0:01:34.4]} 28... g5 {[%clk 0:01:24.2]} 29. Rca5 {[%clk 0:01:26.5]} 29...
gxf4+ {[%clk 0:01:22.5]} 30. Kxf4 {[%clk 0:01:26.4]} 30... Ng6+ {[%clk
0:01:22.8]} 31. Ke3 {[%clk 0:01:25.8]} 31... Rc4 {[%clk 0:01:15.7]} 32. Rxa7
{[%clk 0:01:20.4]} 32... Rxa7 {[%clk 0:01:15.8]} 33. Rxa7 {[%clk 0:01:20.3]}
33... Rc2 {[%clk 0:01:16.4]} 34. Nc5 {[%clk 0:01:18.8]} 34... Kg8 {[%clk
0:01:15.3]} 35. Rb7 {[%clk 0:01:14.9]} 35... Rh2 {[%clk 0:01:13.7]} 36. a4
{[%clk 0:01:10.5]} 36... Rxh3+ {[%clk 0:01:14]} 37. Kd2 {[%clk 0:01:09.8]} 37...
Rh2+ {[%clk 0:01:12.2]} 38. Kc3 {[%clk 0:01:09.4]} 38... Nf4 {[%clk 0:01:12.7]}
39. a5 {[%clk 0:01:06.9]} 39... Ne2+ {[%clk 0:00:41.9]} 40. Kd3 {[%clk 0:01:06]}
40... Nc1+ {[%clk 0:00:32.5]} 41. Ke3 {[%clk 0:01:06.1]} 41... Rh3+ {[%clk
0:00:31.2]} 42. Kd2 {[%clk 0:01:03.6]} 42... Rg3 {[%clk 0:00:22.1]} 43. Kxc1
{[%clk 0:00:59.7]} 43... Rxg4 {[%clk 0:00:22.8]} 44. a6 {[%clk 0:00:58.9]} 44...
Rg1+ {[%clk 0:00:20.6]} 45. Kc2 {[%clk 0:00:58]} 45... Ra1 {[%clk 0:00:21.5]}
46. a7 {[%clk 0:00:57.8]} 46... Kg7 {[%clk 0:00:21.8]} 47. Kb3 {[%clk
0:00:57.8]} 47... Ra5 {[%clk 0:00:20.2]} 48. Kb4 {[%clk 0:00:57]} 48... Ra2
{[%clk 0:00:20.5]} 49. Na4 {[%clk 0:00:56.3]} 1-0